fUSD/lending_fUSD_20240530
["ID","MTS","AMOUNT","RATE_DAILY","PERIOD"]
[328246306,1717101033378,-150.0,0.00028019,2]
[328246307,1717101033387,-150.0,0.00028019,2]
[328246308,1717101033397,-150.0,0.00028019,2]
[328246309,1717101033407,-150.0,0.00028019,2]
[328246310,1717101033416,-300.0,0.000282,2]
[328246311,1717101033425,-160.0,0.0002831,15]
[328246312,1717101033434,-968.0,0.00028339,2]
[328246313,1717101033443,-538.28359419,0.00028571,2]
[328246314,1717101033452,-276.55,0.00028781,2]
[328246315,1717101033462,-718.06,0.00028781,2]
[328246316,1717101033472,-168.74,0.00028781,2]
[328246317,1717101033481,-2051.96615826,0.00029,2]
[328246318,1717101033490,-1000.0,0.00029,6]
[328246319,1717101033500,-1000.0,0.00029,5]
[328246320,1717101033510,-1150.0,0.00029,2]
[328246321,1717101033520,-5195.2062132,0.0002951,2]
[328246322,1717101033533,-657.6233,0.0002961,2]
[328246323,1717101033543,-261.0,0.00029672,2]
[328246324,1717101033555,-176.15685437,0.00029799,2]
[328246325,1717101033579,-500.0,0.0002981,2]
[328246326,1717101033589,-200.0,0.0002981,2]
[328246327,1717101033599,-2007.84808752,0.000299,2]
[328246328,1717101033609,-5195.20621313,0.0002992,2]
[328246329,1717101033619,-182.95012954,0.00029968,2]
[328246330,1717101033629,-2590.110449,0.0002998,2]
[328246331,1717101033639,-3875.905673,0.0002998,2]
[328246332,1717101033648,-7500.0,0.00029985,2]
[328246333,1717101033658,-155.0,0.0003,4]
[328246334,1717101033668,-4470.07486009,0.0003,3]
[328246335,1717101033677,-281.37715554,0.0003,2]
[328246336,1717101033687,-1500.0,0.0003,5]
[328246337,1717101033696,-1000.0,0.0003,7]
[328246338,1717101033707,-151.54,0.0003,2]
[328246339,1717101033716,-13549.484413,0.00030085,2]
[328246340,1717101033725,-1831.8388492,0.00030085,2]
[328246341,1717101033735,-1071.9320883,0.00030085,2]
[328246342,1717101033745,-396.7672825,0.00030085,2]
[328246343,1717101033754,-30352.7817103,0.00030085,2]
[328246344,1717101033764,-4567.204313,0.00030085,2]
[328246345,1717101033774,-1296.786742,0.000301,2]
[328246346,1717101033783,-439.66442511,0.000301,2]
[328246347,1717101033793,-150.0,0.000301,6]
[328246348,1717101033802,-7384.62,0.00030106,5]
[328246349,1717101033812,-7275.55,0.00030114,5]
[328246350,1717101033822,-6966.26749,0.000302,2]
[328246351,1717101033833,-33438.083954,0.000302,2]
[328246352,1717101033846,-2665.349398,0.000302,2]
[328246353,1717101033855,-309.02,0.0003031,2]
[328246354,1717101033864,-5195.20621313,0.0003033,10]
[328246355,1717101033875,-5173.76119,0.00030355,2]
[328246356,1717101033886,-2573.903444,0.00030355,2]
[328246357,1717101033895,-18633.044255,0.00030355,2]
[328246358,1717101033905,-2590.110449,0.00030355,2]
[328246359,1717101033917,-3875.905673,0.00030355,2]
[328246360,1717101033927,-166.66666667,0.00030367,7]
[328246361,1717101033936,-155.6088353,0.00030397,7]
[328246362,1717101033945,-1740.6,0.00030411,2]
[328246363,1717101033955,-478.1,0.00030411,2]
[328246364,1717101033964,-416.39,0.00030411,2]
[328246365,1717101033974,-416.39,0.00030411,2]
[328246366,1717101033983,-416.39,0.00030411,2]
[328246367,1717101033992,-416.39,0.00030411,2]
[328246368,1717101034002,-416.39,0.00030411,2]
[328246369,1717101034011,-416.39,0.00030411,2]
[328246370,1717101034021,-416.39,0.00030411,2]
[328246371,1717101034031,-416.39,0.00030411,2]
[328246372,1717101034040,-319.53789638,0.00030412,2]
[328246373,1717101034050,-151.74403953,0.00030469,7]
[328246374,1717101034060,-153.66017133,0.00030471,7]
[328246375,1717101034070,-150.0,0.00030495,5]
[328246376,1717101034079,-9752.774487,0.000305,2]
[328246377,1717101034089,-46813.317536,0.000305,2]
[328246378,1717101034099,-3731.489158,0.000305,2]
[328246379,1717101034109,-155.6088353,0.00030512,7]
[328246380,1717101034119,-191.57,0.0003054,2]
[328246381,1717101034129,-439.6644251,0.00030543,2]
[328246382,1717101034139,-271.44624048,0.00030553,7]
[328246383,1717101034148,-271.44624048,0.00030557,7]
[328246384,1717101034158,-150.0,0.00030592,2]
[328246385,1717101034168,-150.0,0.00030593,2]
[328246386,1717101034178,-150.0,0.00030596,2]
[328246387,1717101034187,-150.0,0.00030597,2]
[328246388,1717101034197,-150.0,0.000306,6]
[328246389,1717101034206,-150.0,0.00030605,2]
[328246390,1717101034216,-150.0,0.00030607,2]
[328246391,1717101034225,-150.0,0.00030609,2]
[328246392,1717101034235,-150.0,0.0003061,2]
[328246393,1717101034245,-150.0,0.00030614,2]
[328246394,1717101034255,-150.0,0.00030614,2]
[328246395,1717101034264,-150.0,0.00030616,2]
[328246396,1717101034274,-150.0,0.00030617,2]
[328246397,1717101034283,-150.0,0.00030617,2]
[328246398,1717101034292,-150.0,0.00030617,2]
[328246399,1717101034302,-150.0,0.00030619,2]
[328246400,1717101034311,-150.0,0.0003062,2]
[328246401,1717101034321,-150.0,0.00030622,2]
[328246402,1717101034331,-150.0,0.00030625,2]
[328246403,1717101034340,-151.74403953,0.00030632,7]
[328246404,1717101034350,-150.0,0.00030633,2]
[328246405,1717101034359,-150.0,0.00030641,2]
[328246406,1717101034369,-150.0,0.00030641,2]
[328246407,1717101034379,-150.0,0.00030643,2]
[328246408,1717101034388,-150.0,0.00030644,2]
[328246409,1717101034397,-150.0,0.00030644,2]
[328246410,1717101034407,-150.0,0.00030653,2]
[328246411,1717101034416,-150.0,0.00030665,2]
[328246412,1717101034425,-150.0,0.00030668,2]
[328246413,1717101034435,-150.0,0.00030671,2]
[328246414,1717101034444,-150.0,0.00030673,2]
[328246415,1717101034454,-150.0,0.00030674,2]
[328246416,1717101034463,-150.0,0.00030674,2]
[328246417,1717101034473,-150.0,0.00030676,2]
[328246418,1717101034482,-150.0,0.00030678,2]
[328246419,1717101034492,-150.0,0.00030683,2]
[328246420,1717101034502,-150.0,0.00030686,2]
[328246421,1717101034511,-156.03328075,0.00030689,2]
[328246422,1717101034521,-1500.0,0.00030689,2]
[328246423,1717101034531,-150.0,0.00030692,2]
[328246424,1717101034540,-150.0,0.00030694,2]
[328246425,1717101034550,-150.0,0.00030698,2]
[328246426,1717101034559,-150.0,0.00030699,2]
[328246427,1717101034569,-150.0,0.00030701,2]
[328246428,1717101034579,-150.0,0.00030702,2]
[328246429,1717101034588,-150.0,0.00030702,2]
[328246430,1717101034597,-150.0,0.00030703,2]
[328246431,1717101034607,-150.0,0.00030704,2]
[328246432,1717101034617,-150.0,0.00030708,2]
[328246433,1717101034626,-150.0,0.0003071,2]
[328246434,1717101034635,-150.0,0.00030712,2]
[328246435,1717101034644,-150.0,0.00030716,2]
[328246436,1717101034653,-150.0,0.00030719,2]
[328246437,1717101034663,-150.0,0.0003072,2]
[328246438,1717101034672,-150.0,0.00030721,2]
[328246439,1717101034682,-168.10608323,0.00030722,2]
[328246440,1717101034692,-150.0,0.00030723,2]
[328246441,1717101034701,-3705.83561318,0.0003073,2]
[328246442,1717101034963,-1467.92557682,0.0003073,2]
[328246443,1717101034973,-2573.903444,0.0003073,2]
[328246444,1717101034982,-18633.044255,0.0003073,2]
[328246445,1717101034991,-2590.110449,0.0003073,2]
[328246446,1717101035000,-3875.905673,0.0003073,2]
[328246447,1717101035010,-150.0,0.0003073,2]
[328246448,1717101035019,-150.0,0.00030732,2]
[328246449,1717101035028,-150.0,0.00030733,2]
[328246450,1717101035038,-150.0,0.00030733,2]
[328246451,1717101035047,-150.0,0.00030735,2]
[328246452,1717101035057,-150.0,0.00030738,2]
[328246453,1717101035066,-150.0,0.0003074,2]
[328246454,1717101035077,-150.0,0.0003074,2]
[328246455,1717101035086,-5195.20621313,0.0003074,10]
[328246456,1717101035096,-300.0,0.00030741,2]
[328246457,1717101035105,-150.0,0.00030742,2]
[328246458,1717101035115,-150.0,0.00030746,2]
[328246459,1717101035124,-150.0,0.00030751,2]
[328246460,1717101035270,-150.0,0.00030752,2]
[328246461,1717101035315,-150.0,0.00030753,2]
[328246462,1717101035325,-150.0,0.00030753,2]
[328246463,1717101035334,-153.66017133,0.00030758,7]
[328246464,1717101035344,-150.0,0.0003076,2]
[328246465,1717101035353,-150.0,0.0003077,2]
[328246466,1717101035362,-150.0,0.00030771,2]
[328246467,1717101035373,-150.0,0.00030772,2]
[328246468,1717101035383,-150.0,0.00030773,2]
[328246469,1717101035393,-150.0,0.00030775,2]
[328246470,1717101035402,-150.0,0.00030783,2]
[328246471,1717101035412,-150.0,0.00030783,2]
[328246472,1717101035422,-150.0,0.0003079,2]
[328246473,1717101035432,-659.57010066,0.00030798,7]
[328246474,1717101035441,-150.0,0.00030799,2]
[328246475,1717101035451,-11146.027985,0.000308,2]
[328246476,1717101035462,-18559.20208946,0.000308,2]
[328246477,1717101035475,-1394.57802,0.000308,2]
[328246492,1717101038427,-150.0,0.00030443,2]
[328246493,1717101038437,-150.0,0.00030453,2]
[328246494,1717101038446,-150.0,0.00030646,2]
[328246495,1717101038456,-150.0,0.00030685,2]
[328246496,1717101038466,-210.16228092,0.000308,2]
[328246497,1717101038582,-697.76274,0.000308,2]
[328246498,1717101038593,-2061.84358509,0.000308,2]
[328246499,1717101038641,-0.4733312,0.000308,2]
[328246500,1717101038671,-30576.91228033,0.000308,2]
[328246501,1717101038681,-4264.559038,0.000308,2]
[328246502,1717101038691,-150.0,0.000308,2]
[328246503,1717101038700,-150.0,0.00030804,2]
[328246504,1717101038710,-150.0,0.00030806,2]
[328246505,1717101038719,-150.0,0.0003081,2]
[328246506,1717101038728,-151.0,0.00030813,2]
[328246507,1717101038738,-150.0,0.0003082,2]
[328246508,1717101038747,-162.82,0.00030822,2]
[328246509,1717101038756,-300.0,0.00030822,2]
[328246510,1717101038765,-421.62,0.00030822,2]
[328246511,1717101038774,-163.81,0.00030822,2]
[328246512,1717101038783,-352.56,0.00030822,2]
[328246513,1717101038793,-300.0,0.00030822,2]
[328246514,1717101038801,-421.62,0.00030822,2]
[328246515,1717101038810,-150.0,0.00030822,2]
[328246516,1717101038819,-150.0,0.00030822,2]
[328246517,1717101038829,-163.81,0.00030822,2]
[328246518,1717101038845,-352.56,0.00030822,2]
[328246519,1717101038854,-150.0,0.00030822,2]
[328246521,1717101038864,-150.0,0.00030822,2]
[328246522,1717101038873,-241.65,0.00030822,2]
[328246523,1717101038883,-421.62,0.00030822,2]
[328246524,1717101038892,-150.0,0.00030822,2]
[328246525,1717101038902,-163.81,0.00030822,2]
[328246526,1717101038913,-150.0,0.00030822,2]
[328246527,1717101038922,-421.62,0.00030822,2]
[328246528,1717101038932,-163.81,0.00030822,2]
[328246529,1717101038941,-150.0,0.00030822,2]
[328246530,1717101038951,-352.56,0.00030822,2]
[328246531,1717101038960,-163.81,0.00030822,2]
[328246532,1717101038969,-421.62,0.00030822,2]
[328246533,1717101038978,-150.0,0.00030822,2]
[328246534,1717101038988,-150.0,0.00030822,2]
[328246535,1717101038997,-150.0,0.00030822,2]
[328246536,1717101039007,-352.56,0.00030822,2]
[328246537,1717101039016,-421.62,0.00030822,2]
[328246538,1717101039026,-325.97,0.00030822,2]
[328246539,1717101039035,-150.0,0.00030822,2]
[328246540,1717101039044,-352.56,0.00030822,2]
[328246541,1717101039055,-150.0,0.00030822,2]
[328246542,1717101039065,-163.81,0.00030822,2]
[328246543,1717101039075,-421.62,0.00030822,2]
[328246544,1717101039085,-352.56,0.00030822,2]
[328246545,1717101039095,-150.0,0.00030822,2]
[328246546,1717101039104,-150.0,0.00030822,2]
[328246547,1717101039114,-150.0,0.00030822,2]
[328246548,1717101039123,-163.81,0.00030822,2]
[328246549,1717101039134,-421.62,0.00030822,2]
[328246550,1717101039143,-351.36,0.00030822,2]
[328246551,1717101039153,-150.0,0.00030822,2]
[328246552,1717101039162,-542.07,0.00030822,2]
[328246553,1717101039172,-163.81,0.00030822,2]
[328246554,1717101039182,-163.81,0.00030822,2]
[328246555,1717101039192,-163.41,0.00030822,2]
[328246556,1717101039202,-150.0,0.00030822,2]
[328246557,1717101039212,-341.24011699,0.00030823,2]
[328246558,1717101039222,-150.0,0.00030823,2]
[328246559,1717101039231,-150.0,0.00030824,2]
[328246560,1717101039241,-150.0,0.00030824,2]
[328246561,1717101039251,-150.0,0.00030824,2]
[328246562,1717101039261,-150.0,0.0003083,2]
[328246563,1717101039271,-150.0,0.0003083,2]
[328246564,1717101039281,-150.0,0.00030832,2]
[328246565,1717101039291,-150.0,0.00030848,2]
[328246566,1717101039300,-150.0,0.00030849,2]
[328246567,1717101039311,-150.0,0.00030854,2]
[328246568,1717101039320,-150.0,0.00030855,2]
[328246569,1717101039330,-150.0,0.0003086,2]
[328246570,1717101039340,-150.0,0.00030864,2]
[328246571,1717101039350,-20130.05245578,0.00030867,3]
[328246572,1717101039363,-10281.8727,0.00030867,3]
[328246573,1717101039395,-2815.26607122,0.00030867,3]
[328246574,1717101039407,-5972.808773,0.00030867,3]
[328246575,1717101039417,-150.0,0.00030879,2]
[328246576,1717101039427,-150.0,0.00030917,2]
[328246577,1717101039436,-150.0,0.00030952,2]
[328246578,1717101039446,-1200.0,0.0003097,2]
[328246579,1717101039455,-156.84979344,0.00030981,7]
[328246580,1717101039465,-439.6644251,0.00030986,2]
[328246581,1717101039474,-1395.648938,0.00031,7]
[328246582,1717101039483,-1571.44,0.00031,9]
[328246583,1717101039493,-250.0,0.00031,2]
[328246584,1717101039502,-1200.0,0.00031,2]
[328246585,1717101039511,-150.0,0.000311,6]
[328246586,1717101039521,-5173.76119,0.00031105,2]
[328246587,1717101039530,-2573.903444,0.00031105,2]
[328246588,1717101039540,-1986.20909402,0.00031105,2]
[328246589,1717101039552,-928.12833266,0.00031105,2]
[328246590,1717101039564,-560.16164436,0.00031105,2]
[328246591,1717101039579,-15158.54518396,0.00031105,2]
[328246592,1717101039589,-2590.110449,0.00031105,2]
[328246593,1717101039599,-3875.905673,0.00031105,2]
[328246594,1717101039608,-153.66017133,0.00031108,7]
[328246595,1717101039618,-150.0,0.00031122,2]
[328246596,1717101039627,-5114.17852271,0.0003115,10]
[328246633,1717101040255,-81.02769042,0.0003115,10]
[328246635,1717101040265,-968.0,0.00031173,2]
[328246637,1717101040275,-1000.0,0.00031183,2]
[328246639,1717101040285,-271.44624048,0.000312,7]
[328246641,1717101040296,-154.04715798,0.00031233,7]
[328246643,1717101040306,-150.0,0.00031254,2]
[328246645,1717101040316,-150.0,0.00031305,7]
[328246647,1717101040328,-438.76689129,0.00031342,7]
[328246649,1717101040338,-320.55878329,0.00031344,7]
[328246651,1717101040348,-170.58240983,0.00031369,7]
[328246653,1717101040358,-320.55878329,0.0003142,7]
[328246655,1717101040369,-439.6644251,0.00031429,2]
[328246656,1717101040379,-884.18882457,0.00031431,5]
[328246659,1717101040395,-6406.33117543,0.00031431,5]
[328246661,1717101040405,-659.57010066,0.00031463,7]
[328246663,1717101040415,-5173.76119,0.00031479,2]
[328246665,1717101040426,-2573.903444,0.00031479,2]
[328246667,1717101040436,-3992.86368941,0.00031479,2]
[328246671,1717101040463,-373.76666729,0.00031479,2]
[328246684,1717101040687,-251.73248003,0.00031479,2]
[328246706,1717101041009,-3845.16440016,0.00031479,2]
[328246750,1717101042828,-5591.99091233,0.00031479,2]
[328246751,1717101042845,-1351.58706523,0.00031479,2]
[328246752,1717101042918,-254.19018967,0.00031479,2]
[328246753,1717101043097,-2971.74885088,0.00031479,2]
[328246754,1717101043107,-1284.22145706,0.00031479,2]
[328246772,1717101045713,-237.11861552,0.00031478,4]
[328246773,1717101045722,-486.2897317,0.00031478,4]
[328246774,1717101045733,-154.79886798,0.00031478,4]
[328246775,1717101045743,-1305.88899194,0.00031479,2]
[328246776,1717101045752,-3875.905673,0.00031479,2]
[328246777,1717101045761,-151.74403953,0.00031483,7]
[328246778,1717101045770,-271.44624048,0.00031488,7]
[328246779,1717101045780,-438.76689129,0.00031525,7]
[328246780,1717101045789,-150.0,0.00031525,2]
[328246781,1717101045799,-150.0,0.00031536,2]
[328246782,1717101045808,-150.0,0.00031543,2]
[328246783,1717101045816,-5195.20621313,0.0003156,10]
[328246784,1717101045825,-162.65318181,0.00031565,7]
[328246785,1717101045837,-150.0,0.00031568,2]
[328246786,1717101045848,-150.0,0.00031586,2]
[328246787,1717101045857,-150.0,0.000316,7]
[328246788,1717101045867,-157.94374797,0.00031614,7]
[328246789,1717101045876,-150.0,0.00031621,2]
[328246790,1717101045887,-162.65318181,0.00031633,7]
[328246791,1717101045898,-1299.11942176,0.00031633,4]
[328246792,1717101045907,-150.0,0.00031656,2]
[328246793,1717101045918,-320.55878329,0.00031665,7]
[328246794,1717101045928,-300.0,0.00031674,2]
[328246795,1717101045937,-150.0,0.0003172,2]
[328246796,1717101045947,-150.0,0.00031749,2]
[328246797,1717101045956,-1700.0,0.000318,11]
[328246798,1717101045966,-150.0,0.000318,2]
[328246799,1717101045976,-150.0,0.00031805,2]
[328246801,1717101045986,-439.6644251,0.00031871,2]
[328246803,1717101045995,-150.0,0.00031877,2]
[328246805,1717101046004,-668.63145437,0.00031887,4]
[328246807,1717101046014,-168.137785,0.000319,2]
[328246808,1717101046023,-3400.0,0.000319,11]
[328246809,1717101046032,-151.74403953,0.00031909,7]
[328246810,1717101046042,-438.76689129,0.00031931,7]
[328246811,1717101046051,-261.0,0.00031936,2]
[328246812,1717101046060,-168.92915916,0.00031947,7]
[328246813,1717101046069,-153.66017133,0.00031949,7]
[328246814,1717101046079,-168.10608322,0.00031961,2]
[328246815,1717101046088,-5195.20621313,0.0003197,10]
[328246816,1717101046097,-152.29,0.00031977,2]
[328246817,1717101046106,-1116.05963968,0.00031984,2]
[328246818,1717101046115,-99149.04495665,0.00031987,7]
[328246820,1717101046185,-264.72940071,0.00031987,7]
[328246822,1717101046197,-470.543086,0.00031987,7]
[328246824,1717101046208,-452.59259672,0.00031987,7]
[328246826,1717101046218,-873.5886081,0.00031987,7]
[328246828,1717101046230,-6952.43030161,0.00031987,7]
[328246829,1717101046241,-62636.95320417,0.00031987,7]
[328246830,1717101046251,-677.24092568,0.00031987,7]
[328246831,1717101049369,1274.52395937,0.00030798,120]
[328246832,1717101074094,530.20472803,0.00017259,2]
[328246833,1717101074249,252.8485039,0.00017259,2]
[328246834,1717101080808,161.03410793,0.00013898,2]
[328246835,1717101082738,337.62197281,0.00017259,2]
[328246837,1717101085068,4888.68824593,0.0002,2]
[328246838,1717101121140,-790.98303269,0.00017259,2]
[328246839,1717101123752,325.39983263,0.00017258,2]
[328246840,1717101125098,1351.99637627,0.00017258,2]
[328246842,1717101141916,517.26339882,0.00017259,2]
[328246844,1717101157213,1500.0,0.00030137,30]
[328246845,1717101161604,14.35735959,0.00017259,2]
[328246847,1717101214261,-2366.22973263,0.00017257,2]
[328246848,1717101214283,-155.0,0.00017258,2]
[328246849,1717101214306,-155.0,0.00017258,2]
[328246850,1717101214328,-140.64264041,0.00017259,2]
[328246851,1717101214349,-373.12762696,0.00017259,2]
[328246854,1717101909516,25000.0,0.00031,30]
[328246855,1717101922615,25000.0,0.00031,30]
[328246856,1717101948800,25000.0,0.00031,30]
[328246857,1717101955984,25000.0,0.00031,30]
[328246858,1717101957113,-1351.99637627,0.00012697,2]
[328246859,1717101957134,-306.83536219,0.00012698,2]
[328246860,1717101957153,-155.0,0.00012698,2]
[328246861,1717101957176,-255.33,0.00012699,2]
[328246862,1717101957196,-790.98303269,0.00012978,2]
[328246863,1717101957218,-152.29,0.0001299,2]
[328246864,1717101957241,-104.67592879,0.00013,2]
[328246865,1717102016653,-300.0,0.00033876,31]
[328246866,1717102016684,-221.9,0.00033876,90]
[328246867,1717102016715,-284.0,0.00033876,120]
[328246868,1717102016745,-647.69216863,0.00033876,30]
[328246869,1717102016775,-581.66904246,0.00033876,30]
[328246870,1717102016806,-474.949,0.00033876,30]
[328246871,1717102016836,-639.71739793,0.00033876,30]
[328246872,1717102016866,-515.01976095,0.00033876,30]
[328246873,1717102016895,-588.35287529,0.00033876,30]
[328246874,1717102016925,-579.73210665,0.00033876,30]
[328246875,1717102016954,-528.99744303,0.00033876,30]
[328246876,1717102016982,-513.06454974,0.00033876,30]
[328246877,1717102017011,-511.75708735,0.00033876,30]
[328246878,1717102017042,-498.93342674,0.00033876,30]
[328246879,1717102017071,-500.0,0.00033876,30]
[328246880,1717102017100,-646.93,0.00033876,30]
[328246881,1717102017130,-500.0,0.00033876,30]
[328246882,1717102017159,-500.0,0.00033876,30]
[328246883,1717102017188,-500.0,0.00033876,30]
[328246884,1717102017222,-500.0,0.00033876,30]
[328246885,1717102017255,-500.0,0.00033876,30]
[328246886,1717102017284,-500.0,0.00033876,30]
[328246887,1717102017314,-500.0,0.00033876,30]
[328246888,1717102017344,-500.0,0.00033876,30]
[328246889,1717102017372,-515.42099331,0.00033876,30]
[328246890,1717102017401,-317.66732719,0.00033876,30]
[328246891,1717102017430,-500.0,0.00033876,30]
[328246892,1717102017460,-548.96281033,0.00033876,30]
[328246893,1717102017488,-553.88259823,0.00033876,30]
[328246894,1717102017518,-500.0,0.00033876,30]
[328246895,1717102017547,-500.0,0.00033876,30]
[328246896,1717102017576,-500.0,0.00033876,30]
[328246897,1717102017605,-494.83359859,0.00033876,30]
[328246898,1717102017635,-500.0,0.00033876,30]
[328246899,1717102017665,-300.39265402,0.00033876,30]
[328246900,1717102017693,-500.0,0.00033876,30]
[328246901,1717102017722,-511.27723239,0.00033876,30]
[328246902,1717102017752,-500.0,0.00033876,30]
[328246903,1717102017782,-500.0,0.00033876,30]
[328246904,1717102017810,-500.0,0.00033876,30]
[328246905,1717102017838,-500.0,0.00033876,30]
[328246906,1717102017867,-500.0,0.00033876,30]
[328246907,1717102017896,-500.0,0.00033876,30]
[328246908,1717102017925,-563.18988103,0.00033876,30]
[328246909,1717102017954,-500.0,0.00033876,30]
[328246910,1717102017982,-500.0,0.00033876,30]
[328246911,1717102018011,-500.0,0.00033876,30]
[328246912,1717102018040,-500.0,0.00033876,30]
[328246913,1717102018070,-500.0,0.00033876,30]
[328246914,1717102018100,-500.0,0.00033876,30]
[328246915,1717102018128,-500.0,0.00033876,30]
[328246916,1717102018159,-500.0,0.00033876,30]
[328246917,1717102018188,-500.0,0.00033876,30]
[328246918,1717102018219,-500.0,0.00033876,30]
[328246919,1717102018255,-500.0,0.00033876,30]
[328246920,1717102018285,-500.0,0.00033876,30]
[328246921,1717102018317,-643.95363222,0.00033876,30]
[328246922,1717102018349,-198.88,0.00033876,30]
[328246923,1717102018380,-500.0,0.00033876,30]
[328246924,1717102018413,-488.31576289,0.00033876,30]
[328246925,1717102018443,-501.93966428,0.00033876,30]
[328246926,1717102018472,-516.44773508,0.00033876,30]
[328246927,1717102018502,-531.74956651,0.00033876,30]
[328246928,1717102018531,-500.49134274,0.00033876,30]
[328246929,1717102018559,-500.0,0.00033876,30]
[328246930,1717102018590,-500.0,0.00033876,30]
[328246931,1717102018619,-511.74590139,0.00033876,30]
[328246932,1717102018648,-500.0,0.00033876,30]
[328246933,1717102018677,-519.22929798,0.00033876,30]
[328246934,1717102018707,-500.0,0.00033876,30]
[328246935,1717102018737,-500.0,0.00033876,30]
[328246936,1717102018768,-500.0,0.00033876,30]
[328246937,1717102018800,-500.0,0.00033876,30]
[328246938,1717102018831,-500.0,0.00033876,30]
[328246939,1717102018862,-500.0,0.00033876,30]
[328246940,1717102018891,-594.36433239,0.00033876,30]
[328246941,1717102018920,-183.62868673,0.00033876,30]
[328246942,1717102018948,-500.0,0.00033876,30]
[328246943,1717102018981,-507.83815981,0.00033876,30]
[328246944,1717102019011,-548.09141935,0.00033876,30]
[328246945,1717102019043,-500.0,0.00033876,30]
[328246946,1717102019075,-517.47099809,0.00033876,30]
[328246947,1717102019106,-500.0,0.00033876,30]
[328246948,1717102019136,-520.2612016,0.00033876,30]
[328246949,1717102019172,-500.0,0.00033876,30]
[328246950,1717102019205,-500.0,0.00033876,30]
[328246951,1717102019238,-500.0,0.00033876,30]
[328246952,1717102019269,-500.0,0.00033876,30]
[328246953,1717102019300,-500.0,0.00033876,30]
[328246954,1717102019334,-500.0,0.00033876,30]
[328246955,1717102019366,-500.0,0.00033876,30]
[328246956,1717102019396,-348.41,0.00033876,30]
[328246957,1717102019427,-500.0,0.00033876,30]
[328246958,1717102019457,-500.0,0.00033876,30]
[328246959,1717102019621,-500.0,0.00033876,30]
[328246960,1717102019662,-500.0,0.00033876,30]
[328246961,1717102019694,-500.0,0.00033876,30]
[328246962,1717102019725,-500.0,0.00033876,30]
[328246963,1717102019756,-500.0,0.00033876,30]
[328246964,1717102019786,-500.0,0.00033876,30]
[328246965,1717102019816,-500.0,0.00033876,30]
[328246966,1717102019844,-500.0,0.00033876,30]
[328246967,1717102019873,-586.99719111,0.00033876,30]
[328246968,1717102019902,-500.0,0.00033876,30]
[328246969,1717102019930,-500.0,0.00033876,30]
[328246970,1717102019959,-500.0,0.00033876,30]
[328246971,1717102019987,-2000.0,0.00033876,30]
[328246972,1717102020017,-880.8,0.00033876,30]
[328246973,1717102020046,-500.0,0.00033876,30]
[328246974,1717102020075,-500.0,0.00033876,30]
[328246975,1717102020103,-200.839991,0.00033876,30]
[328246976,1717102020132,-500.0,0.00033876,30]
[328246977,1717102020162,-504.65841552,0.00033876,30]
[328246978,1717102020196,-500.0,0.00033876,30]
[328246979,1717102020232,-500.0,0.00033876,30]
[328246980,1717102020264,-500.0,0.00033876,30]
[328246981,1717102020297,-516.55689973,0.00033876,30]
[328246982,1717102020329,-500.0,0.00033876,30]
[328246983,1717102020361,-345.75129897,0.00033876,30]
[328246984,1717102020397,-500.0,0.00033876,30]